[Event "AUT Bundesliga 2024-25"]
[Site "Austria"]
[Date "2025.04.05"]
[Round "10.1"]
[White "Parligras, Mircea-Emilian"]
[Black "Horvath, Dominik"]
[Result "1-0"]
[Annotator "RC"]
[ECO "E10"]
[WhiteElo "2507"]
[BlackElo "2543"]
[PlyCount "87"]
[EventDate "2024.08.28"]
[EventType "team-tourn"]
[EventCountry "AUT"]
[SourceTitle "playchess.com"]
[Source "ChessBase"]
[SourceQuality "1"]
[TimeControl "40/5400+30:1800+30"]

1. d4 {[%emt 0:00:03]} Nf6 {[%emt 0:00:05]} 2. c4 {[%emt 0:00:06]} e6 {[%emt 0:00:39]} 3. Nf3 {[%emt 0:00:10]} h6 {[%emt 0:00:05]} 4. Nc3 {[%emt 0:01:47]} Bb4 {[%emt 0:00:06]} 5. Qc2 {[%emt 0:03:48]} c5 {[%emt 0:00:08]} 6. dxc5 {[%emt 0:01:31]} Na6 {[%emt 0:00:22]} 7. a3 {[%emt 0:04:03]} Bxc3+ {[%emt 0:00:18]} 8. Qxc3 {[%emt 0:00:08]} Nxc5 {[%emt 0:00:04]} 9. Nd2 {[%emt 0:26:55]} O-O {[%emt 0:30:41]} 10. b4 {[%emt 0:01:45]} Nce4 {[%emt 0:07:24]} 11. Nxe4 {[%emt 0:00:14]} Nxe4 {[%emt 0:00:03]} 12. Qd4 {[%emt 0:00:08]} d5 {[%emt 0:04:33]} 13. Bb2 {[%emt 0:00:55]} Qg5 {[%emt 0:03:28]} 14. e3 {[%emt 0:05:05]} Re8 {[%emt 0:02:01]} 15. h4 {[%emt 0:18:29]} Qg4 {[%emt 0:12:15]} 16. Rh3 {[%emt 0:07:59]} e5 {[%emt 0:07:11]} 17. Qxd5 {[%emt 0:00:16]} Nf6 {[%emt 0:08:53]} 18. Qd2 {[%emt 0:03:23]} Be6 {[%emt 0:05:09]} 19. Rg3 {[%emt 0:06:38]} Qxh4 {[%emt 0:00:44]} 20. Bxe5 {[%emt 0:00:15]} Nh5 {[%emt 0:00:06]} 21. Rf3 {[%emt 0:04:05]} Bg4 {[%emt 0:01:24]} 22. Bd4 {[%emt 0:02:09]} Bxf3 {[%emt 0:02:15]} 23. gxf3 {[%emt 0:00:02]} Nf4 {[%emt 0:02:11]} 24. O-O-O {[%emt 0:00:09]} Ne6 {[%emt 0:00:01]} 25. Bb2 {[%emt 0:00:40]} Red8 {[%emt 0:00:08]} 26. Bd3 {[%emt 0:01:14]} a5 {[%emt 0:04:21]} 27. f4 {[%emt 0:01:27]} axb4 {[%emt 0:00:02]} 28. axb4 {[%emt 0:00:06]} f6 {[%emt 0:06:07]} 29. Qe2 {[%emt 0:02:52]} Qh3 {[%emt 0:00:19]} 30. c5 {[%emt 0:01:11]} Kh8 {[%emt 0:00:07]} 31. Be4 {[%emt 0:04:01]} Rxd1+ {[%emt 0:00:04]} 32. Kxd1 {[%emt 0:00:12]} Rd8+ {[%emt 0:00:28]} 33. Kc2 {[%emt 0:00:24]} Rd7 {[%emt 0:01:28]} 34. Qb5 {[%emt 0:01:12]} Re7 {[%emt 0:01:45]} 35. c6 {[%emt 0:00:53]} b6 {[%emt 0:00:43]} 36. Qxb6 {[%emt 0:00:22]} f5 {[%emt 0:00:02]} 37. Bd5 {[%emt 0:01:27]} Qf1 {[%emt 0:00:31]} 38. Bc3 {[%emt 0:01:55]} Qe2+ {[%emt 0:00:41]} 39. Bd2 {[%emt 0:00:15]} Nc7 {[%emt 0:01:51]} 40. Qb8+ {[%emt 0:00:37]} Kh7 {[%emt 0:00:03]} 41. Bg8+ {[%emt 0:05:26]} Kg6 {[%emt 0:00:03]} 42. Qf8 {[%emt 0:00:17]} Nb5 {[%emt 0:03:49]} 43. Qxe7 {[%emt 0:02:01]} Nd4+ {[%emt 0:00:01]} 44. Kc1 {[%emt 0:00:33]} 1-0

[Event "AUT Bundesliga 2024-25"]
[Site "Austria"]
[Date "2025.04.05"]
[Round "10.2"]
[White "Kozak, Adam"]
[Black "Kozul, Zdenko"]
[Result "*"]
[Annotator "TA"]
[ECO "E94"]
[WhiteElo "2598"]
[BlackElo "2507"]
[PlyCount "35"]
[EventDate "2024.08.28"]
[EventType "team-tourn"]
[EventCountry "AUT"]
[SourceTitle "playchess.com"]
[Source "ChessBase"]
[SourceQuality "1"]
[TimeControl "40/5400+30:1800+30"]

{[%evp 14,35,55,39,66,62,63,57,81,81,84,72,90,71,68,51,77,82,81,68,74,74,111,66]} 1. d4 {[%emt 0:00:02]} Nf6 {[%emt 0:00:12]} 2. c4 {[%emt 0:00:06]} g6 {[%emt 0:00:14]} 3. Nc3 {[%emt 0:00:07]} Bg7 {[%emt 0:00:06]} 4. e4 {[%emt 1:32:15]} d6 {[%emt 0:00:09]} 5. Nf3 {[%emt 0:00:09]} O-O {[%emt 0:01:27]} 6. Be2 {[%emt 0:00:14]} e5 {[%emt 0:00:17]} 7. O-O {[%emt 0:00:13]} Bg4 {[%emt 0:05:38]} 8. d5 {[%emt 0:00:12]} Nbd7 {[%emt 0:00:13] E94: King's Indian: Classical: 6 Be2 e5 7 0-0: Various Black 7th moves.} 9. h3 {[%emt 0:02:00]} Bxf3 {[%emt 0:00:15]} 10. Bxf3 {[%emt 0:00:06]} Kh8 {[%emt 0:04:47] White is slightly better.} 11. Bg5 $146 {[%emt 0:06:13]} (11. Rb1 Ng8 12. b4 f5 13. Ba3 Nb6 14. Be2 fxe4 15. Nxe4 Nh6 16. c5 Nc8 {½-½ Winzek,F (1479)-Luethje,F (1320) Schleswig Holstein-ch U18 Vormeister 2010 (2)}) 11... Qb8 {[%emt 0:04:23]} 12. Qd2 {[%emt 0:15:09]} Ng8 {[%emt 0:06:39]} 13. Be2 {[%emt 0:03:45] White is more active. Black is weak on the light squares} a6 {[%emt 0:09:08] White has space advantage and is better} 14. Rae1 {[%emt 0:23:36]} f6 {[%emt 0:10:35]} 15. Be3 {[%emt 0:00:57]} f5 {[%emt 0:00:07]} 16. exf5 {[%emt 0:02:49]} gxf5 {[%emt 0:00:06] [#] Strongly threatening ...f4.} 17. f4 {[%emt 0:00:06]} Ne7 {[%emt 0:02:31] Inaccurate:     	White=1     	Black=2      OK:         	White=4     	Black=1} 18. Bd3 {[%emt 0:10:09] Weighted Error Value: White=0.05 (flawless) /Black=0.16 (very precise)} *

[Event "AUT Bundesliga 2024-25"]
[Site "Austria"]
[Date "2025.04.05"]
[Round "10.2"]
[White "Kozak, Adam"]
[Black "Kozul, Zdenko"]
[Result "1/2-1/2"]
[Annotator "RC"]
[ECO "E94"]
[WhiteElo "2598"]
[BlackElo "2507"]
[PlyCount "227"]
[EventDate "2024.08.28"]
[EventType "team-tourn"]
[EventCountry "AUT"]
[SourceTitle "playchess.com"]
[Source "ChessBase"]
[SourceQuality "1"]
[TimeControl "40/5400+30:1800+30"]

1. d4 {[%emt 0:00:02]} Nf6 {[%emt 0:00:12]} 2. c4 {[%emt 0:00:06]} g6 {[%emt 0:00:14]} 3. Nc3 {[%emt 0:00:07]} Bg7 {[%emt 0:00:06]} 4. e4 {[%emt 0:00:07]} d6 {[%emt 0:00:09]} 5. Nf3 {[%emt 0:00:09]} O-O {[%emt 0:01:27]} 6. Be2 {[%emt 0:00:14]} e5 {[%emt 0:00:17]} 7. O-O {[%emt 0:00:13]} Bg4 {[%emt 0:05:38]} 8. d5 {[%emt 0:00:12]} Nbd7 {[%emt 0:00:13]} 9. h3 {[%emt 0:02:00]} Bxf3 {[%emt 0:00:15]} 10. Bxf3 {[%emt 0:00:06]} Kh8 {[%emt 0:04:47]} 11. Bg5 {[%emt 0:06:13]} Qb8 {[%emt 0:04:23]} 12. Qd2 {[%emt 0:15:09]} Ng8 {[%emt 0:06:39]} 13. Be2 {[%emt 0:03:45]} a6 {[%emt 0:09:08]} 14. Rae1 {[%emt 0:23:36]} f6 {[%emt 0:10:35]} 15. Be3 {[%emt 0:00:57]} f5 {[%emt 0:00:07]} 16. exf5 {[%emt 0:02:49]} gxf5 {[%emt 0:00:06]} 17. f4 {[%emt 0:00:06]} Ne7 {[%emt 0:02:31]} 18. Bd3 {[%emt 0:10:09]} e4 {[%emt 0:09:12]} 19. Be2 {[%emt 0:00:34]} Rg8 {[%emt 0:00:30]} 20. g4 {[%emt 0:03:01]} b5 {[%emt 0:04:10]} 21. cxb5 {[%emt 0:02:48]} axb5 {[%emt 0:01:34]} 22. Bxb5 {[%emt 0:02:03]} Nb6 {[%emt 0:05:00]} 23. a4 {[%emt 0:02:52]} fxg4 {[%emt 0:03:04]} 24. hxg4 {[%emt 0:00:14]} Qc8 {[%emt 0:00:58]} 25. g5 {[%emt 0:01:26]} Nbxd5 {[%emt 0:01:57]} 26. Nxe4 {[%emt 0:12:42]} c6 {[%emt 0:01:44]} 27. Nxd6 {[%emt 0:02:46]} Qe6 {[%emt 0:00:14]} 28. Bc5 {[%emt 0:01:30]} Qg4+ {[%emt 0:01:26]} 29. Qg2 {[%emt 0:00:06]} Qxg2+ {[%emt 0:07:37]} 30. Kxg2 {[%emt 0:00:01]} Rgf8 {[%emt 0:00:19]} 31. Bc4 {[%emt 0:00:57]} Bxb2 {[%emt 0:03:50]} 32. Re4 {[%emt 0:02:30]} Nf5 {[%emt 0:04:40]} 33. Nxf5 {[%emt 0:04:37]} Rxf5 {[%emt 0:00:07]} 34. Bxd5 {[%emt 0:02:50]} cxd5 {[%emt 0:04:53]} 35. Rb4 {[%emt 0:00:31]} Ba3 {[%emt 0:00:08]} 36. Bd4+ {[%emt 0:00:11]} Kg8 {[%emt 0:00:06]} 37. Rb7 {[%emt 0:00:49]} Rxa4 {[%emt 0:03:27]} 38. Be5 {[%emt 0:00:29]} Bf8 {[%emt 0:04:57]} 39. Kg3 {[%emt 0:00:31]} Rf7 {[%emt 0:02:01]} 40. Rb8 {[%emt 0:00:29]} Rd7 {[%emt 0:01:17]} 41. Rc1 {[%emt 0:16:50]} Rc4 {[%emt 0:06:22]} 42. Ra1 {[%emt 0:00:38]} Rb4 {[%emt 0:00:09]} 43. Rc8 {[%emt 0:04:25]} Rc4 {[%emt 0:00:10]} 44. Rb8 {[%emt 0:02:41]} Rb4 {[%emt 0:00:06]} 45. Re8 {[%emt 0:00:06]} Kf7 {[%emt 0:07:40]} 46. Raa8 {[%emt 0:00:04]} Bg7 {[%emt 0:01:51]} 47. Bxg7 {[%emt 0:00:57]} Kxg7 {[%emt 0:00:06]} 48. Rg8+ {[%emt 0:03:18]} Kf7 {[%emt 0:00:05]} 49. Raf8+ {[%emt 0:00:22]} Ke7 {[%emt 0:01:49]} 50. Rg7+ {[%emt 0:05:17]} Kxf8 {[%emt 0:00:27]} 51. Rxd7 {[%emt 0:00:04]} Kg8 {[%emt 0:00:30]} 52. Rxd5 {[%emt 0:00:09]} Rb1 {[%emt 0:00:12]} 53. Rd6 {[%emt 0:00:43]} Rf1 {[%emt 0:00:27]} 54. Kg4 {[%emt 0:00:04]} Kg7 {[%emt 0:00:34]} 55. Kf5 {[%emt 0:00:08]} Rf2 {[%emt 0:00:33]} 56. Rd7+ {[%emt 0:00:11]} Kg8 {[%emt 0:00:06]} 57. Ke5 {[%emt 0:00:57]} Ra2 {[%emt 0:04:50]} 58. f5 {[%emt 0:00:38]} Ra6 {[%emt 0:00:56]} 59. Rd8+ {[%emt 0:00:13]} Kf7 {[%emt 0:00:18]} 60. Rd7+ {[%emt 0:00:09]} Kg8 {[%emt 0:00:05]} 61. f6 {[%emt 0:02:30]} Ra1 {[%emt 0:02:23]} 62. Rg7+ {[%emt 0:00:02]} Kh8 {[%emt 0:00:05]} 63. Kf5 {[%emt 0:01:00]} Ra5+ {[%emt 0:00:36]} 64. Kg4 {[%emt 0:00:11]} Ra4+ {[%emt 0:00:53]} 65. Kh5 {[%emt 0:00:10]} Ra1 {[%emt 0:00:36]} 66. Re7 {[%emt 0:00:49]} Kg8 {[%emt 0:00:07]} 67. Kg4 {[%emt 0:00:41]} Rf1 {[%emt 0:00:38]} 68. Rd7 {[%emt 0:00:40]} Rf2 {[%emt 0:00:14]} 69. Rc7 {[%emt 0:00:33]} Rf1 {[%emt 0:00:06]} 70. Rg7+ {[%emt 0:00:18]} Kh8 {[%emt 0:00:06]} 71. Rb7 {[%emt 0:00:41]} Kg8 {[%emt 0:00:05]} 72. Rb8+ {[%emt 0:00:31]} Kf7 {[%emt 0:00:07]} 73. Rb7+ {[%emt 0:00:20]} Kg8 {[%emt 0:00:05]} 74. Rb8+ {[%emt 0:00:02]} Kf7 {[%emt 0:00:05]} 75. Rh8 {[%emt 0:00:49]} Rg1+ {[%emt 0:01:46]} 76. Kf5 {[%emt 0:00:06]} Rf1+ {[%emt 0:00:03]} 77. Ke5 {[%emt 0:00:21]} Re1+ {[%emt 0:00:06]} 78. Kf4 {[%emt 0:00:07]} Rf1+ {[%emt 0:00:05]} 79. Ke3 {[%emt 0:00:06]} Rh1 {[%emt 0:03:14]} 80. Rb8 {[%emt 0:00:13]} Rf1 {[%emt 0:03:04]} 81. Rb7+ {[%emt 0:00:31]} Kg8 {[%emt 0:00:05]} 82. Rg7+ {[%emt 0:01:36]} Kh8 {[%emt 0:00:04]} 83. Ke4 {[%emt 0:00:14]} Ra1 {[%emt 0:01:35]} 84. Rc7 {[%emt 0:01:28]} Kg8 {[%emt 0:00:05]} 85. Ke5 {[%emt 0:00:36]} Re1+ {[%emt 0:00:25]} 86. Kd6 {[%emt 0:00:28]} Rd1+ {[%emt 0:01:56]} 87. Ke7 {[%emt 0:00:09]} Re1+ {[%emt 0:00:42]} 88. Kd8 {[%emt 0:00:04]} Ra1 {[%emt 0:01:37]} 89. Ke8 {[%emt 0:00:09]} Ra8+ {[%emt 0:00:20]} 90. Ke7 {[%emt 0:00:05]} Rb8 {[%emt 0:00:08]} 91. Ra7 {[%emt 0:01:45]} Rc8 {[%emt 0:00:06]} 92. Rd7 {[%emt 0:00:50]} Ra8 {[%emt 0:00:09]} 93. Ke6 {[%emt 0:00:30]} Ra6+ {[%emt 0:00:28]} 94. Rd6 {[%emt 0:00:16]} Ra8 {[%emt 0:00:05]} 95. Rd5 {[%emt 0:00:45]} Ra6+ {[%emt 0:01:26]} 96. Kf5 {[%emt 0:00:21]} Ra1 {[%emt 0:00:13]} 97. Rd8+ {[%emt 0:00:40]} Kf7 {[%emt 0:00:06]} 98. Rd7+ {[%emt 0:00:14]} Kg8 {[%emt 0:00:06]} 99. Rg7+ {[%emt 0:00:46]} Kh8 {[%emt 0:00:06]} 100. g6 {[%emt 0:00:30]} Ra5+ {[%emt 0:03:30]} 101. Kg4 {[%emt 0:00:30]} hxg6 {[%emt 0:00:09]} 102. Rxg6 {[%emt 0:00:16]} Kh7 {[%emt 0:00:09]} 103. Rg7+ {[%emt 0:00:45]} Kh8 {[%emt 0:00:49]} 104. Rg5 {[%emt 0:00:18]} Ra7 {[%emt 0:01:29]} 105. Kf5 {[%emt 0:00:36]} Kh7 {[%emt 0:00:32]} 106. Kg4 {[%emt 0:00:36]} Ra4+ {[%emt 0:00:56]} 107. Kh5 {[%emt 0:00:06]} Rf4 {[%emt 0:00:30]} 108. Rg7+ {[%emt 0:00:36]} Kh8 {[%emt 0:00:05]} 109. Rg6 {[%emt 0:00:38]} Rf1 {[%emt 0:00:40]} 110. Kg5 {[%emt 0:00:34]} Rg1+ {[%emt 0:00:11]} 111. Kf5 {[%emt 0:00:03]} Rxg6 {[%emt 0:00:09]} 112. Kxg6 {[%emt 0:00:02]} Kg8 {[%emt 0:00:09]} 113. f7+ {[%emt 0:00:06]} Kf8 {[%emt 0:00:07]} 114. Kf6 {[%emt 0:00:02]} 1/2-1/2

[Event "AUT Bundesliga 2024-25"]
[Site "Austria"]
[Date "2025.04.05"]
[Round "10.3"]
[White "Schnider, Gert"]
[Black "Markus, Robert"]
[Result "*"]
[Annotator "TA"]
[ECO "C18"]
[WhiteElo "2368"]
[BlackElo "2595"]
[PlyCount "34"]
[EventDate "2024.08.28"]
[EventType "team-tourn"]
[EventCountry "AUT"]
[SourceTitle "playchess.com"]
[Source "ChessBase"]
[SourceQuality "1"]
[TimeControl "40/5400+30:1800+30"]

{[%evp 14,34,75,40,37,34,26,34,36,33,27,0,0,0,35,13,11,-53,0,0,0,0,8]} 1. e4 {[%emt 0:00:02]} e6 {[%emt 0:00:07]} 2. d4 {[%emt 0:00:03]} d5 {[%emt 1:31:23]} 3. Nc3 {[%emt 0:00:04]} Bb4 {[%emt 0:00:09]} 4. e5 {[%emt 0:00:03]} c5 {[%emt 0:00:09]} 5. a3 {[%emt 0:00:03]} Bxc3+ {[%emt 0:00:23]} 6. bxc3 {[%emt 0:00:04]} Nc6 {[%emt 0:00:21]} 7. Qg4 {[%emt 0:05:50]} g6 {[%emt 0:01:04]} 8. h4 {[%emt 0:03:13] White is more active.} (8. dxc5 Nxe5 9. Qf4 Nc6 $11) 8... Bd7 {[%emt 0:02:43] C18: French: 3 Nc3 Bb4: Main line: 7 h4 and 7 Qg4.} 9. h5 {[%emt 0:02:44] [#]} Qa5 {[%emt 0:00:56][%csl LRc3,LRd4]} 10. Bd2 {[%emt 0:05:10]} Qa4 {[%emt 0:04:08][%csl LRc2,LRd4] White is slightly better.} 11. hxg6 {[%emt 0:10:00]} fxg6 {[%emt 0:00:37]} 12. Nf3 {[%emt 0:06:30][%cal Oh1h7]} O-O-O {[%emt 0:06:44]} 13. Ng5 {[%emt 0:18:40]} h5 {[%emt 0:09:09]} 14. Qg3 $146 {[%emt 0:03:28] A sharp opening} (14. Nxe6 $2 {is the wrong capture.} hxg4 15. Nxc5 Rxh1 $19 (15... Qxc2 $2 16. Rxh8 g3 17. fxg3 $19)) (14. Qh3 Nh6 15. Nxe6 cxd4 16. Nc5 Bxh3 17. Nxa4 Bf5 18. Bg5 Rde8 19. cxd4 Bxc2 20. Bxh6 Bxa4 {½-½ Koch,D (2150)-Brittner,S (2285) Luxembourg-chT 1314 2013 (6)}) 14... Nh6 {[%emt 0:06:20] Prevents Nf7} 15. Bd3 {[%emt 0:01:34]} ({Better is} 15. dxc5 $11 Qa5 16. f4) 15... c4 {[%emt 0:09:29]} (15... cxd4 $15 16. Rh4 Rdf8) 16. Bxg6 $11 {[%emt 0:41:02][%cal Og3f3] and Qf3! would now be decisive} Rdg8 {[%emt 0:09:20]} 17. Bxh5 {[%emt 0:00:00] Mistake:       	White=1     	Black=1      Inaccurate:     	White=1     	Black=1      OK:         	White=5     	Black=3      Best:        	---       	Black=1} Nf5 {[%emt 0:04:01] Weighted Error Value: White=0.19 (very precise) /Black=0.11 (very precise)} *

[Event "AUT Bundesliga 2024-25"]
[Site "Austria"]
[Date "2025.04.05"]
[Round "10.4"]
[White "Korpa, Bence"]
[Black "Fahrner, Kurt"]
[Result "*"]
[Annotator "TA"]
[ECO "A41"]
[WhiteElo "2543"]
[BlackElo "2266"]
[PlyCount "40"]
[EventDate "2024.08.28"]
[EventType "team-tourn"]
[EventCountry "AUT"]
[SourceTitle "playchess.com"]
[Source "ChessBase"]
[SourceQuality "1"]
[TimeControl "40/5400+30:1800+30"]

{[%evp 9,40,20,28,27,42,34,64,60,66,52,63,49,72,87,87,64,69,34,47,36,41,25,25,34,16,23,57,31,33,27,46,-28,104]} 1. Nf3 {[%emt 0:00:04]} d6 {[%emt 0:00:08]} 2. d4 {[%emt 0:00:35]} g6 {[%emt 0:00:09]} 3. b4 {[%emt 0:02:33]} Bg7 {[%emt 0:00:47]} 4. Bb2 {[%emt 0:00:07]} f5 {[%emt 0:07:25]} 5. e3 {[%emt 0:01:22]} Nf6 {[%emt 0:02:40]} 6. c4 {[%emt 0:00:13] A41: 1 d4 d6: Tartakower System and Modern Defence.} c6 {[%emt 0:07:36]} 7. Nc3 {[%emt 0:01:52]} Na6 $146 {[%emt 1:15:15]} (7... O-O 8. Be2 h6 9. O-O Be6 10. Bd3 Nbd7 11. Qe2 Qe8 12. Rfe1 Nb6 13. Rac1 Qf7 {½-½ Folk Gilsanz,J (2269)-Fengier,D (2285) Champion's League 2017/C4 email [2]}) 8. Qb3 {[%emt 0:01:48] White is slightly better.} Nc7 {[%emt 0:01:05]} 9. a4 {[%emt 0:01:21]} O-O {[%emt 0:03:34]} 10. Be2 {[%emt 0:01:13]} Kh8 {[%emt 0:12:49]} 11. Rd1 {[%emt 0:03:37]} Be6 {[%emt 0:00:40]} 12. Ng5 {[%emt 0:08:44]} Bg8 {[%emt 0:02:35][%cal Ob7b5]} 13. h4 {[%emt 1:13:31] White is more active.} Qe8 {[%emt 0:02:17]} 14. d5 {[%emt 0:02:35][%cal Oh4h5]} Rd8 {[%emt 0:10:13]} 15. Bf3 {[%emt 0:04:01]} e5 {[%emt 0:00:21]} 16. dxe6 {[%emt 0:00:35]} Nxe6 {[%emt 0:00:08]} 17. Ne2 {[%emt 0:00:08]} a5 {[%emt 0:42:59]} 18. bxa5 {[%emt 0:01:41]} Nc5 {[%emt 0:04:17]} 19. Qc2 {[%emt 0:03:47][%cal Oh4h5] And now h5! would win.} Nfe4 {[%emt 0:03:39]} ({Reject} 19... h6 $6 20. h5 $16) 20. Nf4 {[%emt 0:08:26] Mistake:       	White=1     	Black=1      Inaccurate:     	White=2     	Black=2      OK:         	White=6     	Black=4      Best:        	---       	Black=1} (20. Bd4 $14) 20... Be5 {[%emt 0:00:24] Weighted Error Value: White=0.16 (very precise) /Black=0.11 (very precise)} (20... Bxb2 $1 $11 {remains equal.} 21. Qxb2+ Qe5) *

[Event "AUT Bundesliga 2024-25"]
[Site "Austria"]
[Date "2025.04.05"]
[Round "10.5"]
[White "Krebs, Johann"]
[Black "Subelj, Jan"]
[Result "0-1"]
[Annotator "RC"]
[ECO "D31"]
[WhiteElo "2231"]
[BlackElo "2528"]
[PlyCount "100"]
[EventDate "2024.08.28"]
[EventType "team-tourn"]
[EventCountry "AUT"]
[SourceTitle "playchess.com"]
[Source "ChessBase"]
[SourceQuality "1"]
[TimeControl "40/5400+30:1800+30"]

1. d4 {[%emt 0:00:04]} d5 {[%emt 0:00:14]} 2. c4 {[%emt 0:00:07]} e6 {[%emt 0:00:05]} 3. Nc3 {[%emt 0:00:07]} c6 {[%emt 0:00:13]} 4. e4 {[%emt 0:04:34]} dxe4 {[%emt 0:00:43]} 5. Nxe4 {[%emt 0:00:07]} Bb4+ {[%emt 0:00:05]} 6. Nc3 {[%emt 0:00:29]} c5 {[%emt 0:00:44]} 7. a3 {[%emt 0:06:06]} Ba5 {[%emt 0:00:06]} 8. Be3 {[%emt 0:01:39]} Nf6 {[%emt 0:01:23]} 9. Rc1 {[%emt 0:03:32]} cxd4 {[%emt 0:06:45]} 10. Qxd4 {[%emt 0:04:52]} Qxd4 {[%emt 0:00:41]} 11. Bxd4 {[%emt 0:00:03]} Nc6 {[%emt 0:00:09]} 12. Be3 {[%emt 0:06:19]} Ng4 {[%emt 0:01:52]} 13. Bc5 {[%emt 0:00:25]} f6 {[%emt 0:10:28]} 14. Nf3 {[%emt 0:12:43]} Bd7 {[%emt 0:04:48]} 15. b4 {[%emt 0:00:37]} Bb6 {[%emt 0:00:24]} 16. Ne4 {[%emt 0:02:01]} Bxc5 {[%emt 0:01:18]} 17. Nxc5 {[%emt 0:01:48]} O-O-O {[%emt 0:00:51]} 18. Be2 {[%emt 0:03:31]} e5 {[%emt 0:01:03]} 19. O-O {[%emt 0:07:20]} Nh6 {[%emt 0:04:23]} 20. Rfd1 {[%emt 0:09:01]} Bf5 {[%emt 0:01:12]} 21. Rd5 {[%emt 0:05:51]} Rhe8 {[%emt 0:03:57]} 22. Bd1 {[%emt 0:05:25]} Ne7 {[%emt 0:01:59]} 23. Ba4 {[%emt 0:06:26]} Nxd5 {[%emt 0:04:01]} 24. cxd5 {[%emt 0:00:26]} Kb8 {[%emt 0:00:03]} 25. Bxe8 {[%emt 0:02:53]} Rxe8 {[%emt 0:00:05]} 26. h3 {[%emt 0:03:56]} Rd8 {[%emt 0:06:07]} 27. g4 {[%emt 0:05:02]} Bc8 {[%emt 0:00:22]} 28. Rd1 {[%emt 0:00:10]} b6 {[%emt 0:01:57]} 29. Ne4 {[%emt 0:00:06]} Bb7 {[%emt 0:00:30]} 30. Nc3 {[%emt 0:04:23]} Nf7 {[%emt 0:00:05]} 31. Nh4 {[%emt 0:00:37]} Nd6 {[%emt 0:01:15]} 32. Ng2 {[%emt 0:00:37]} Rc8 {[%emt 0:00:38]} 33. Rd3 {[%emt 0:00:19]} Ba6 {[%emt 0:02:16]} 34. Rg3 {[%emt 0:02:24]} Rc4 {[%emt 0:00:26]} 35. Nh4 {[%emt 0:00:25]} Bc8 {[%emt 0:00:49]} 36. Re3 {[%emt 0:00:25]} e4 {[%emt 0:05:17]} 37. Ng2 {[%emt 0:02:01]} f5 {[%emt 0:03:31]} 38. g5 {[%emt 0:00:43]} f4 {[%emt 0:00:32]} 39. Nxf4 {[%emt 0:00:18]} Nf5 {[%emt 0:00:06]} 40. Nce2 {[%emt 0:01:27]} Nxe3 {[%emt 0:00:20]} 41. fxe3 {[%emt 0:30:02]} Kc7 {[%emt 0:30:58]} 42. Kf2 {[%emt 0:00:00]} Kd6 {[%emt 0:00:00]} 43. Kg3 {[%emt 0:00:00]} Ke5 {[%emt 0:00:00]} 44. h4 {[%emt 0:00:00]} Bb7 {[%emt 0:00:00]} 45. Ne6 {[%emt 0:00:00]} g6 {[%emt 0:00:00]} 46. Nf8 {[%emt 0:00:00]} Rc7 {[%emt 0:00:00]} 47. h5 {[%emt 0:00:00]} gxh5 {[%emt 0:00:00]} 48. Nf4 {[%emt 0:00:00]} Rf7 {[%emt 0:00:00]} 49. g6 {[%emt 0:01:41]} Rxf8 {[%emt 0:00:00]} 50. gxh7 {[%emt 0:00:07]} Kf5 {[%emt 0:00:00]} 0-1

[Event "AUT Bundesliga 2024-25"]
[Site "Austria"]
[Date "2025.04.05"]
[Round "10.6"]
[White "Gschnitzer, Adrian"]
[Black "Ebner, Hubert"]
[Result "1-0"]
[Annotator "RC"]
[ECO "B52"]
[WhiteElo "2430"]
[BlackElo "2154"]
[PlyCount "83"]
[EventDate "2024.08.28"]
[EventType "team-tourn"]
[EventCountry "AUT"]
[SourceTitle "playchess.com"]
[Source "ChessBase"]
[SourceQuality "1"]
[TimeControl "40/5400+30:1800+30"]

1. e4 {[%emt 0:00:03]} c5 {[%emt 0:00:13]} 2. Nf3 {[%emt 0:00:05]} d6 {[%emt 0:00:19]} 3. Bb5+ {[%emt 0:00:08]} Bd7 {[%emt 0:00:33]} 4. Bxd7+ {[%emt 0:00:09]} Qxd7 {[%emt 0:00:27]} 5. c4 {[%emt 0:00:12]} Nc6 {[%emt 0:01:14]} 6. d4 {[%emt 0:00:21]} cxd4 {[%emt 0:00:23]} 7. Nxd4 {[%emt 0:00:06]} Nf6 {[%emt 0:00:33]} 8. Nc3 {[%emt 0:00:09]} g6 {[%emt 0:00:55]} 9. f3 {[%emt 0:00:10]} Bg7 {[%emt 0:00:51]} 10. Be3 {[%emt 0:00:15]} O-O {[%emt 0:00:41]} 11. O-O {[%emt 0:00:32]} a6 {[%emt 0:01:27]} 12. Qd3 {[%emt 0:03:43]} Rab8 {[%emt 0:11:05]} 13. Nxc6 {[%emt 0:02:54]} bxc6 {[%emt 0:00:46]} 14. b3 {[%emt 0:01:28]} Qc7 {[%emt 0:08:27]} 15. Rad1 {[%emt 0:10:51]} Nd7 {[%emt 0:12:41]} 16. f4 {[%emt 0:04:21]} Rfd8 {[%emt 0:01:06]} 17. Qc2 {[%emt 0:05:25]} a5 {[%emt 0:14:14]} 18. Rd2 {[%emt 0:07:21]} Nc5 {[%emt 0:12:43]} 19. Bxc5 {[%emt 0:05:36]} dxc5 {[%emt 0:00:58]} 20. e5 {[%emt 0:00:32]} f6 {[%emt 0:00:22]} 21. Re2 {[%emt 0:02:55]} Rf8 {[%emt 0:12:44]} 22. f5 {[%emt 0:08:20]} gxf5 {[%emt 0:00:33]} 23. e6 {[%emt 0:01:51]} f4 {[%emt 0:00:23]} 24. Qf5 {[%emt 0:00:26]} Rbd8 {[%emt 0:00:25]} 25. Rxf4 {[%emt 0:08:24]} Qe5 {[%emt 0:05:11]} 26. Qxe5 {[%emt 0:07:33]} fxe5 {[%emt 0:00:32]} 27. Rxf8+ {[%emt 0:00:12]} Kxf8 {[%emt 0:00:31]} 28. Ne4 {[%emt 0:00:38]} a4 {[%emt 0:02:28]} 29. g4 {[%emt 0:02:51]} h6 {[%emt 0:07:26]} 30. bxa4 {[%emt 0:02:20]} Bf6 {[%emt 0:00:31]} 31. Nxc5 {[%emt 0:02:16]} Rd4 {[%emt 0:01:10]} 32. Rc2 {[%emt 0:04:49]} e4 {[%emt 0:01:53]} 33. Kf2 {[%emt 0:01:50]} Rd8 {[%emt 0:02:12]} 34. Nd7+ {[%emt 0:02:21]} Kg7 {[%emt 0:00:07]} 35. c5 {[%emt 0:07:34]} Bd4+ {[%emt 0:00:12]} 36. Ke2 {[%emt 0:00:22]} Ra8 {[%emt 0:00:07]} 37. Rc4 {[%emt 0:00:21]} Bg1 {[%emt 0:00:31]} 38. h4 {[%emt 0:03:47]} Ra5 {[%emt 0:00:42]} 39. Rxe4 {[%emt 0:00:43]} Bxc5 {[%emt 0:01:19]} 40. Re5 {[%emt 0:00:07]} Bb4 {[%emt 0:00:52]} 41. Rxa5 {[%emt 0:30:07]} Bxa5 {[%emt 0:30:07]} 42. h5 {[%emt 0:00:07]} 1-0